bitfinex/quotes_ETHUSD_20260108
["timestamp","ask_amount","ask_price","bid_price","bid_amount"]
[1767838278021,1.25056149,3177.8,3177.0,0.826]
[1767838278218,1.25056149,3177.7,3177.0,0.826]
[1767838278730,1.25056149,3177.7,3176.9,4.40747489]
[1767838279229,1.25056149,3177.7,3177.0,1.25978275]
[1767838279828,1.25056149,3177.6,3177.0,1.25978275]
[1767838280021,1.25056149,3177.6,3176.8,1.25978275]
[1767838280328,1.25056149,3177.6,3177.0,1.25978275]
[1767838281697,4.39760306,3177.6,3177.0,1.25978275]
[1767838282121,7.54464463,3177.6,3177.0,1.25978275]
[1767838282441,4.39760306,3177.6,3176.9,1.25978275]
[1767838282803,4.39760306,3177.6,3177.3,0.001]
[1767838284033,1.25056149,3177.6,3177.3,0.001]
[1767838284435,4.3976106,3177.6,3177.3,0.001]
[1767838285017,4.39760409,3177.6,3177.3,0.001]
[1767838285214,1.25056149,3177.5,3177.3,0.001]
[1767838285420,1.25056149,3177.5,3176.7,1.25978275]
[1767838286016,4.39778878,3177.4,3176.7,1.25978275]
[1767838286226,4.39778878,3177.4,3175.0,0.62016991]
[1767838286227,1.25056149,3177.3,3176.3,1.25978275]
[1767838286426,1.25056149,3177.1,3176.3,1.25978275]
[1767838287619,1.25056149,3177.1,3175.7,0.826]
[1767838287945,1.25056149,3176.7,3175.1,1.25978275]
[1767838288142,4.68465348,3176.8,3175.1,1.25978275]
[1767838288143,1.25056149,3176.5,3175.1,1.25978275]
[1767838288311,1.25056149,3176.3,3175.1,1.25978275]
[1767838290342,1.25056149,3176.1,3175.1,1.25978275]
[1767838290642,6.29683268,3176.2,3175.1,1.25978275]
[1767838290643,1.25056149,3175.9,3175.1,1.25978275]
[1767838290942,1.25056149,3175.9,3174.9,1.26078275]
[1767838292041,1.25056149,3175.9,3174.9,4.41048483]
[1767838292420,1.25805503,3175.7,3174.9,1.26078275]
[1767838294324,1.25805503,3175.7,3175.5,0.001]
[1767838294519,1.25805503,3175.6,3174.9,1.26078275]
[1767838294936,1.25805503,3175.6,3174.9,4.41047844]
[1767838295842,6.25805503,3175.6,3174.9,4.41047844]
[1767838296143,1.25805503,3175.6,3174.9,4.41047844]
[1767838297021,0.44068679,3175.7,3175.0,1.24915543]
[1767838297347,1.25805503,3175.8,3175.1,1.24915543]
[1767838299247,1.25805503,3176.5,3175.2,1.25015543]
[1767838299547,1.25805503,3176.3,3175.2,1.25015543]
[1767838300841,0.826,3176.4,3175.2,1.25015543]
[1767838300842,5.0,3176.0,3175.2,1.25015543]
[1767838301143,4.40659003,3176.1,3175.3,1.24915543]
[1767838301354,1.69871403,3176.0,3175.3,1.24915543]
[1767838301532,1.25805503,3175.9,3175.2,0.001]
[1767838301732,1.25805503,3175.8,3175.2,0.001]
[1767838303430,1.25805503,3175.7,3175.2,0.001]
[1767838304751,1.25805503,3175.6,3175.2,0.001]
[1767838305824,6.25805503,3175.6,3175.2,0.001]
[1767838306154,6.25805503,3175.6,3175.5,0.001]
[1767838306332,6.25805503,3175.6,3175.2,0.001]
[1767838306534,1.25805503,3175.6,3175.2,0.001]
[1767838308364,1.69871403,3176.0,3175.2,1.25015543]
[1767838308660,2.08405503,3175.7,3175.2,0.001]
[1767838308829,1.25805503,3175.6,3175.2,0.001]
[1767838311063,6.25805503,3175.6,3175.2,0.001]
[1767838311271,5.0,3175.6,3175.2,1.25015543]
[1767838312545,5.0,3175.6,3175.3,1.24915543]
[1767838314273,1.25805503,3176.3,3175.4,1.24915543]
[1767838314577,0.826,3176.2,3175.4,1.24915543]
[1767838314746,2.08405503,3176.2,3175.4,1.24915543]
[1767838314945,2.08405503,3176.2,3175.5,1.24915543]
[1767838315371,2.08405503,3176.2,3175.5,1.73298525]
[1767838315746,5.2325117,3176.2,3175.5,1.73298525]
[1767838315945,1.25805503,3176.1,3175.5,1.73298525]
[1767838316177,1.25805503,3176.1,3175.5,1.24915543]
[1767838316675,1.25805503,3176.1,3175.3,0.43994892]
[1767838316676,1.25805503,3176.1,3175.3,1.68910435]
[1767838316976,1.25805503,3175.9,3175.3,0.43994892]
[1767838317152,1.25805503,3175.9,3175.2,0.001]
[1767838317352,1.25805503,3175.9,3175.2,1.25015543]
[1767838317553,1.25805503,3175.9,3175.5,0.001]
[1767838317868,1.26005503,3175.9,3175.5,0.001]
[1767838318365,0.002,3175.9,3175.5,0.001]
[1767838318583,0.002,3175.9,3175.5,0.44094489]
[1767838319480,0.828,3175.9,3175.5,0.44094489]
[1767838319680,0.828,3175.9,3175.5,0.001]
[1767838320181,2.08605503,3175.9,3175.2,0.001]
[1767838320482,2.08605503,3175.9,3175.2,1.25015543]
[1767838320680,2.08405503,3175.8,3175.2,1.25015543]
[1767838320880,1.25805503,3175.7,3175.2,0.001]
[1767838321077,1.25805503,3175.7,3175.2,3.15039675]
[1767838321278,0.826,3175.8,3175.3,0.31503968]
[1767838321483,0.826,3175.8,3175.2,1.25015543]
[1767838323886,3.97486492,3175.8,3175.2,1.25015543]
[1767838324193,5.20116638,3175.8,3175.2,1.25015543]
[1767838324591,1.22630146,3175.7,3175.2,0.001]
[1767838325584,1.22630146,3175.7,3174.9,0.001]
[1767838325754,1.22630146,3175.5,3174.9,0.001]
[1767838326084,1.22630146,3175.5,3174.6,1.16286915]
[1767838326285,1.22630146,3175.3,3174.6,1.16286915]
[1767838326590,1.22630146,3175.1,3174.6,0.001]
[1767838327999,4.37581703,3175.1,3174.6,0.001]
[1767838328304,1.22630146,3175.1,3174.6,0.001]
[1767838330472,1.22630146,3175.1,3174.9,0.001]
[1767838330792,1.74657415,3175.1,3174.6,0.001]
[1767838331290,4.89609204,3175.1,3174.6,0.001]
[1767838331989,1.22630146,3175.0,3174.3,1.16186915]
[1767838332162,1.22630146,3175.0,3173.8,3.15073011]
[1767838332358,1.22630146,3174.8,3174.0,1.16286915]
[1767838332560,0.827,3174.7,3174.0,1.16286915]
[1767838332988,2.05330146,3174.7,3174.0,1.16286915]
[1767838333190,1.22630146,3174.6,3174.0,0.001]
[1767838334193,1.22630146,3174.4,3174.0,0.001]
[1767838334372,1.22630146,3174.3,3174.0,0.001]
[1767838336562,1.22630146,3174.3,3173.7,1.16186915]
[1767838336960,0.827,3174.2,3173.7,1.16186915]
[1767838337190,5.827,3174.2,3173.7,1.16186915]
[1767838337393,4.42349605,3174.9,3173.7,1.16186915]
[1767838337394,1.22630146,3175.1,3174.0,1.16186915]
[1767838337563,2.05330146,3175.5,3174.4,1.16186915]
[1767838337964,1.22630146,3175.5,3174.6,4.31183328]
[1767838338197,1.22630146,3175.4,3174.6,1.16186915]
[1767838338861,2.06144809,3175.4,3174.6,1.16186915]
[1767838339061,1.22630146,3175.3,3174.6,1.16186915]
[1767838340099,4.37561166,3175.3,3174.6,1.16186915]
[1767838340408,1.22630146,3175.2,3174.3,3.15024602]
[1767838340605,1.22630146,3175.1,3174.3,3.15024602]
[1767838340807,1.22630146,3175.0,3174.0,1.16186915]
[1767838341010,1.22630146,3175.0,3174.2,1.16186915]
[1767838341306,1.22630146,3175.0,3174.3,1.16186915]
[1767838342278,1.22630146,3175.0,3174.9,0.001]
[1767838342482,1.22630146,3175.0,3174.3,1.16186915]
[1767838342483,1.47945155,3175.0,3174.2,3.15036546]
[1767838342689,1.22630146,3175.0,3174.3,1.16186915]
[1767838343309,0.002,3175.2,3174.4,1.16186915]
[1767838343616,0.002,3175.5,3174.5,1.16186915]
[1767838344205,0.002,3175.5,3174.7,1.16186915]
[1767838346180,0.002,3175.5,3174.9,1.16186915]
[1767838346379,0.002,3175.5,3175.1,1.16186915]
[1767838348900,0.002,3175.5,3175.0,0.74614786]
[1767838349075,0.002,3175.5,3175.0,3.89569882]
[1767838349574,0.002,3175.5,3175.0,5.05756797]
[1767838349788,0.002,3175.5,3175.0,1.90801701]
[1767838349974,1.22830146,3175.5,3174.5,1.16186915]
[1767838350178,1.22830146,3175.5,3174.4,4.31206939]
[1767838351401,1.22630146,3175.3,3174.5,3.15010051]
[1767838351607,1.22630146,3175.3,3174.5,1.16186915]
[1767838351775,1.22630146,3175.3,3174.6,1.59307195]
[1767838353008,1.20254484,3175.5,3174.8,1.1893807]
[1767838353211,0.002,3175.5,3174.8,1.22087874]
[1767838354210,0.002,3175.5,3174.8,1.1893807]
[1767838354509,0.002,3175.5,3175.0,1.1893807]
[1767838355312,0.002,3175.5,3175.2,1.1893807]
[1767838355313,0.002,3175.3,3175.2,1.1893807]
[1767838355606,0.002,3175.9,3175.2,1.1893807]
[1767838355607,1.20054484,3175.8,3175.2,0.827]
[1767838357813,1.20054484,3175.8,3175.3,3.14930872]
[1767838358125,0.002,3175.9,3175.3,6.29861744]
[1767838358298,0.002,3175.9,3175.4,0.83149981]
[1767838358498,0.002,3175.9,3175.4,2.02088051]
[1767838358892,0.002,3175.9,3175.5,1.1893807]
[1767838359317,1.20054484,3176.1,3175.4,0.83149981]
[1767838360338,0.002,3176.2,3175.5,6.29822074]
[1767838360638,0.002,3176.2,3175.7,1.1893807]
[1767838360924,0.002,3176.2,3175.9,1.1893807]
[1767838361299,0.002,3176.2,3175.8,0.827]
[1767838361700,1.20254484,3176.6,3175.8,0.827]
[1767838361913,0.002,3176.6,3175.9,1.1893807]
[1767838362093,0.002,3176.6,3175.9,1.39101877]
[1767838362521,0.002,3176.6,3176.0,3.1486146]
[1767838364219,0.002,3176.6,3176.1,1.1893807]
[1767838364420,0.002,3176.6,3176.0,3.1486146]
[1767838367215,1.20254484,3176.6,3176.0,3.1486146]
[1767838367529,0.002,3176.3,3176.0,4.00015856]
[1767838368027,1.20054484,3179.0,3177.0,1.1893807]
[1767838368223,1.20054484,3179.0,3177.3,0.09459545]
[1767838368425,1.20054484,3179.0,3177.4,1.1893807]
[1767838369317,1.20054484,3178.8,3177.5,6.29425648]
[1767838369503,1.20054484,3178.8,3177.6,0.826]
[1767838371926,1.20054484,3178.8,3177.5,9.44138472]
[1767838372231,1.20054484,3178.8,3177.8,6.29366228]
[1767838373233,1.20054484,3178.6,3177.9,0.826]
[1767838374329,1.20054484,3178.6,3178.0,3.1466331]
[1767838375630,1.20054484,3178.6,3177.8,3.14683114]
[1767838375631,1.20054484,3178.6,3178.1,0.826]
[1767838375830,1.20054484,3178.5,3177.7,3.1469104]
[1767838376007,1.20054484,3178.3,3177.8,3.14682494]
[1767838376206,1.20054484,3178.3,3177.3,3.14732634]
[1767838376416,1.20054484,3178.3,3177.4,0.826]
[1767838378113,1.20054484,3178.3,3177.4,4.606]
[1767838378318,1.20054484,3178.3,3177.5,6.29425648]
[1767838380536,1.20054484,3178.3,3177.5,7.30343474]
[1767838381706,1.20054484,3178.3,3177.6,0.826]
[1767838382418,1.20054484,3178.3,3177.7,6.29386032]
[1767838384635,1.20054484,3178.3,3177.7,3.14693016]
[1767838386419,1.20054484,3178.3,3177.7,6.29386032]
[1767838387527,1.20054484,3178.3,3177.8,0.826]
[1767838389829,1.20054484,3178.3,3177.8,3.97275062]
[1767838391740,1.20054484,3178.3,3177.8,7.11958176]
[1767838391935,1.20054484,3178.3,3177.8,3.97275062]
[1767838392136,0.002,3178.0,3177.8,3.97275062]
[1767838394745,0.002,3178.3,3177.8,7.11958176]
[1767838394953,1.117836,3178.3,3177.8,7.11958176]
[1767838395129,1.117836,3178.3,3177.8,3.97275062]
[1767838399462,1.117836,3178.3,3177.9,0.826]
[1767838399964,0.002,3178.3,3178.0,0.826]
[1767838400258,0.002,3178.3,3177.8,7.47619142]
[1767838400432,0.002,3178.3,3177.8,4.32936028]
[1767838400632,1.117836,3178.3,3177.9,0.826]
[1767838402644,1.117836,3178.3,3177.9,3.97263836]
[1767838403138,1.117836,3178.3,3177.9,3.14663836]
[1767838403345,1.117836,3178.3,3177.9,3.97263836]
[1767838404561,0.002,3178.0,3177.9,3.97263836]
[1767838404865,1.117836,3178.3,3177.9,3.97263836]
[1767838408956,1.117836,3178.3,3177.9,0.826]
[1767838411564,1.117836,3178.3,3177.9,3.97272974]
[1767838411770,0.002,3178.3,3177.9,3.97272974]
[1767838412462,0.002,3178.3,3177.9,0.826]
[1767838412770,1.11793647,3178.3,3177.9,0.826]
[1767838414153,0.002,3178.3,3177.9,0.826]
[1767838414355,0.002,3178.3,3177.8,4.28154229]
[1767838414872,0.002,3178.3,3177.9,5.10746509]
[1767838415571,0.002,3178.3,3177.9,3.97272518]
[1767838415770,0.002,3178.3,3177.9,5.10746509]
[1767838416074,0.002,3178.3,3177.9,0.826]
[1767838416075,0.002,3178.0,3177.9,0.826]
[1767838416370,1.11793647,3178.3,3177.9,0.826]
[1767838417873,1.11793647,3178.3,3177.9,3.97273056]
[1767838418254,1.11793647,3178.3,3177.8,3.1467966]
[1767838418455,1.11793647,3178.3,3177.9,0.826]
[1767838419485,0.002,3178.5,3178.0,1.13473991]
[1767838419775,0.002,3178.8,3178.1,1.13473991]
[1767838419962,0.42637036,3178.7,3178.1,1.13473991]
[1767838420348,1.11793647,3178.8,3178.1,1.13473991]
[1767838421080,0.002,3178.8,3178.1,1.13473991]
[1767838421577,0.002,3178.8,3178.3,1.13473991]
[1767838421773,0.002,3178.8,3178.4,1.96073991]
[1767838421974,0.002,3178.8,3178.5,1.13473991]
[1767838423777,0.002,3178.8,3178.6,1.13473991]
[1767838423955,0.002,3179.2,3178.6,1.13473991]
[1767838424289,0.0838812,3179.4,3178.6,1.13473991]
[1767838425056,0.002,3179.5,3178.6,1.13473991]
[1767838425378,0.002,3179.5,3178.8,1.13473991]
[1767838425575,0.002,3179.5,3179.0,1.13473991]
[1767838426844,0.002,3179.5,3179.1,1.13473991]
[1767838428377,0.002,3179.4,3179.1,1.13473991]
[1767838430749,0.002,3179.5,3179.4,1.13473991]
[1767838431785,0.002,3179.5,3179.3,0.826]
[1767838433595,0.002,3179.5,3179.3,1.96073991]
[1767838434488,0.002,3179.5,3179.4,1.13473991]
[1767838434691,0.002,3179.5,3179.3,0.826]
[1767838435665,0.002,3179.5,3179.3,1.96073991]
[1767838436991,0.002,3179.5,3179.3,1.13473991]
[1767838437166,0.002,3179.5,3179.3,1.96073991]
[1767838437902,0.002,3179.5,3179.4,1.13473991]
[1767838440407,0.002,3179.5,3179.3,0.826]
[1767838440773,0.002,3179.5,3179.3,1.96073991]
[1767838441098,0.002,3179.5,3179.4,1.13473991]
[1767838442305,0.002,3179.5,3179.3,0.826]
[1767838442801,0.002,3179.6,3179.3,1.9375466]
[1767838442966,0.002,3179.6,3179.4,1.1115466]
[1767838443173,0.002,3180.1,3179.6,1.1115466]
[1767838443371,3.14406086,3180.6,3180.1,1.1115466]
[1767838443597,3.14406086,3180.6,3180.1,1.10954661]
[1767838444182,3.14406086,3180.6,3180.1,1.054744]
[1767838444379,0.76386242,3180.5,3180.1,0.83776522]
[1767838446675,3.90804116,3180.5,3180.1,0.83776522]
[1767838447614,7.0522199,3180.5,3180.1,0.83776522]
[1767838448085,3.90804116,3180.5,3180.1,0.83776522]
[1767838448811,3.90803136,3180.5,3180.1,0.83776522]
[1767838449504,3.90803136,3180.5,3179.9,0.826]
[1767838449709,0.47044488,3180.4,3179.9,0.826]
[1767838451213,3.61477355,3180.4,3179.9,0.826]
[1767838451420,4.36704615,3180.4,3179.8,1.9365466]
[1767838451718,6.75910222,3180.4,3179.8,1.1115466]
[1767838451914,6.75910222,3180.4,3179.8,1.9365466]
[1767838452217,0.002,3180.2,3179.8,1.9365466]
[1767838453224,3.30533997,3181.4,3180.4,1.1115466]
[1767838453519,0.47426475,3181.5,3180.6,1.1115466]
[1767838453702,3.14286875,3181.9,3180.6,1.1115466]
[1767838453703,0.47550689,3181.7,3180.6,1.1115466]
[1767838453904,0.47550689,3181.7,3180.8,1.1115466]
[1767838454304,0.47550689,3181.7,3180.7,0.19365466]
[1767838454305,0.47550689,3181.7,3181.0,1.1115466]
[1767838454511,3.61848236,3181.7,3181.0,1.1115466]
[1767838455313,0.002,3181.8,3181.0,1.1115466]
[1767838455502,0.002,3181.8,3181.1,1.1115466]
[1767838455895,3.50716583,3181.8,3181.1,1.1115466]
[1767838456225,0.36427334,3181.8,3181.3,1.1115466]
[1767838456414,0.002,3181.8,3181.4,1.1115466]
[1767838456617,0.03084293,3183.2,3182.7,1.1115466]
[1767838456805,0.4799535,3185.0,3183.0,1.1115466]
[1767838456806,3.139816,3184.9,3183.0,1.1115466]
[1767838457130,3.139816,3184.9,3183.3,1.1115466]
[1767838457131,0.36197695,3184.8,3183.3,1.1115466]
[1767838457325,4.68140372,3184.6,3183.5,1.1115466]
[1767838457515,0.36197695,3184.8,3183.5,1.1115466]
[1767838457731,3.13982617,3184.9,3183.5,1.1115466]
[1767838457970,6.27965234,3184.9,3183.5,1.1115466]
[1767838458095,6.27965234,3184.9,3183.7,1.1115466]
[1767838458096,0.48352762,3184.8,3183.7,1.1115466]
[1767838458301,0.48352762,3184.8,3183.2,0.16404251]
[1767838458302,0.48352762,3184.6,3183.3,0.825]
[1767838458617,1.12078705,3184.4,3183.2,2.10058911]
[1767838459018,1.12078705,3184.4,3183.3,1.1115466]
[1767838459219,7.40160229,3184.3,3183.3,1.1115466]
[1767838459446,1.86094728,3184.2,3183.3,1.1115466]
[1767838459745,0.74016023,3184.2,3183.2,0.16404251]
[1767838459923,0.98904249,3183.2,3183.0,1.1115466]
[1767838460937,0.98904249,3183.2,3181.9,1.09247796]
[1767838461099,0.98904249,3183.2,3182.1,1.09247796]
[1767838461300,7.40397011,3183.1,3182.1,1.09247796]
[1767838461496,1.12078705,3183.0,3182.1,1.09247796]
[1767838462132,4.13057489,3183.2,3182.2,1.0973858]
[1767838462821,7.27210729,3183.2,3182.2,1.0973858]
[1767838463021,0.72721073,3183.1,3182.2,1.0973858]
[1767838463550,3.14169022,3183.0,3182.2,1.0973858]
[1767838464249,3.86881836,3183.1,3182.2,1.0973858]
[1767838464825,0.002,3182.7,3182.2,1.0973858]
[1767838465235,0.002,3182.7,3182.0,0.85642677]
[1767838466245,0.002,3182.7,3182.1,1.1115466]
[1767838466631,0.002,3182.7,3182.1,1.9365466]
[1767838466832,1.12278705,3182.7,3182.1,0.825]
[1767838467032,1.12278705,3182.7,3181.5,1.14297831]
[1767838467341,1.12278705,3182.7,3181.6,0.825]
[1767838467651,1.12278705,3182.7,3181.5,4.28611751]
[1767838467652,1.12278705,3182.7,3181.5,0.03143171]
[1767838467828,1.12078705,3182.5,3181.5,0.825]
[1767838468148,1.12078705,3182.3,3181.3,0.8564327]
[1767838468331,1.12078705,3182.3,3181.3,3.99976279]
[1767838468526,1.12078705,3182.3,3181.3,1.9679793]
[1767838468732,1.12078705,3182.3,3181.3,0.8564327]
[1767838468928,1.12078705,3182.3,3181.3,0.0314327]
[1767838469165,1.12078705,3182.3,3181.0,4.2551999]
[1767838469166,1.30691533,3182.2,3181.1,0.85643566]
[1767838469325,1.30691533,3182.2,3181.0,1.14298325]
[1767838469658,1.30691533,3182.2,3181.0,0.85643665]
[1767838469866,1.12078705,3182.0,3181.0,0.85643665]
[1767838470355,1.12078705,3182.0,3180.9,0.825]
[1767838470536,1.12078705,3181.8,3180.9,0.825]
[1767838470736,1.12078705,3181.8,3180.8,3.17526174]
[1767838470952,1.12078705,3181.8,3180.8,4.00026174]
[1767838471659,1.12078705,3181.8,3180.8,0.85643664]
[1767838471821,1.12078705,3181.6,3180.6,0.03143664]
[1767838472026,1.12078705,3181.6,3180.5,1.17925575]
[1767838472226,3.14297388,3181.7,3180.8,1.14781416]
[1767838472472,1.32949554,3182.2,3180.8,1.14781416]
[1767838472641,1.32949554,3182.2,3181.0,1.15209349]
[1767838472642,3.14267662,3182.1,3181.0,1.15209349]
[1767838472837,0.44721722,3182.0,3181.0,1.15209349]
[1767838473154,3.14267662,3182.1,3181.0,1.15209349]
[1767838473155,4.28604388,3182.1,3181.0,1.15209349]
[1767838473361,4.28604388,3182.1,3181.1,0.03143566]
[1767838474070,4.28604388,3182.1,3181.1,3.17497842]
[1767838474548,1.14336726,3182.0,3181.0,5.15212914]
[1767838474849,0.74287205,3181.9,3181.0,2.00852914]
[1767838475054,1.88623931,3181.9,3181.0,2.00852914]
[1767838475823,0.74287205,3181.9,3181.1,1.16465379]
[1767838476156,4.285962,3182.1,3181.1,4.33965614]
[1767838477046,7.42855674,3182.1,3181.3,0.001]
[1767838477241,1.14336726,3182.0,3181.3,0.001]
[1767838478365,1.14336726,3181.8,3181.3,0.001]
[1767838479241,1.14336726,3181.8,3180.7,0.03143962]
[1767838479481,1.14336726,3181.6,3180.7,0.03143962]
[1767838480169,1.14336726,3181.6,3180.6,2.001782]
[1767838480521,3.14317146,3181.5,3180.6,5.14583441]
[1767838480681,3.14317146,3181.5,3180.6,2.0332226]
[1767838480838,1.14336726,3181.4,3180.1,1.1846402]
[1767838481177,1.14336726,3181.3,3180.2,0.03144456]
[1767838481360,1.14336726,3181.3,3180.0,1.21608674]
[1767838481863,1.14336726,3181.3,3180.1,1.18850215]
[1767838482042,1.14336726,3181.3,3180.1,0.03144456]
[1767838482243,1.14336726,3181.1,3180.2,3.14437467]
[1767838482443,4.28695427,3181.1,3180.2,3.14437467]
[1767838483069,1.14336726,3181.0,3180.1,0.03144456]
[1767838483774,1.14336726,3181.0,3179.9,1.21994967]
[1767838483948,1.14336726,3181.0,3179.9,4.36464166]
[1767838484144,1.88642139,3180.9,3179.9,5.16669538]
[1767838484344,0.74305413,3180.9,3180.2,1.19609784]
[1767838484578,0.18863285,3181.2,3180.4,1.19609784]
[1767838484875,3.14218983,3182.5,3180.6,1.19984999]
[1767838484876,4.28652374,3181.6,3180.6,1.19984999]
[1767838485059,1.14336726,3181.5,3180.6,1.19984999]
[1767838485260,1.14336726,3181.5,3180.7,0.02766659]
[1767838486800,4.2866164,3181.5,3180.7,0.02766659]
[1767838487586,0.7429693,3181.5,3180.7,4.37882796]
[1767838487883,4.28639691,3181.7,3180.7,4.37882796]
[1767838488265,1.14336726,3181.6,3180.7,1.23488797]
[1767838488779,3.14317146,3181.5,3180.7,1.23488797]
[1767838488962,3.14317146,3181.5,3181.0,0.001]
[1767838489562,4.28653872,3181.5,3181.0,0.001]
[1767838490377,5.02949556,3181.5,3181.0,0.001]
[1767838490883,1.14336726,3181.4,3181.0,0.001]
[1767838491455,1.14336726,3181.4,3180.3,2.06515815]
[1767838491659,1.14336726,3181.4,3180.3,0.84375704]
[1767838491889,1.14336726,3181.4,3180.4,3.14420065]
[1767838492189,1.14336726,3181.2,3180.4,3.14420065]
[1767838492768,1.14336726,3181.4,3180.5,1.2450297]
[1767838492956,1.96836726,3181.4,3180.5,1.2450297]
[1767838493363,1.14336726,3181.4,3180.5,1.22627384]
[1767838493972,1.65452647,3181.4,3180.5,1.22627384]
[1767838494690,2.6,3181.2,3180.5,1.22627384]
[1767838495664,2.6,3181.2,3180.5,7.53624771]
[1767838495876,2.6,3181.2,3180.5,7.5145835]
[1767838498094,2.6,3181.2,3180.5,4.37042378]
[1767838498268,2.6,3181.2,3180.5,5.20438898]
[1767838498466,1.96836726,3181.6,3180.6,1.22627384]
[1767838498670,5.11145658,3181.6,3180.6,1.25771444]
[1767838498871,1.14336726,3181.5,3180.6,1.25771444]
[1767838499079,1.14336726,3181.5,3180.6,2.09571337]
[1767838499394,1.14336726,3181.5,3180.6,2.06427277]
[1767838499597,1.14336726,3181.5,3180.5,3.14414994]
[1767838499775,7.11117864,3181.6,3180.5,3.14414994]
[1767838499776,1.14336726,3181.3,3180.5,3.14414994]
[1767838500173,1.14336726,3181.3,3180.4,0.03144258]
[1767838500376,1.14336726,3181.3,3180.6,0.001]
[1767838500770,3.14327025,3181.4,3180.6,0.001]
[1767838500771,1.14336726,3181.1,3180.6,0.001]
[1767838501064,1.14336726,3181.0,3179.5,5.00627384]
[1767838501265,0.825,3181.1,3178.4,3.24075361]
[1767838501266,1.14336726,3180.8,3179.3,1.22627384]
[1767838501465,1.14336726,3180.8,3179.5,3.1450823]
[1767838501863,0.19683673,3180.9,3179.5,3.1450823]
[1767838501864,1.14336726,3180.6,3179.5,3.1451486]
[1767838502182,1.23087782,3180.5,3179.5,3.1451486]
[1767838502389,1.23087782,3180.5,3179.6,1.26011721]
[1767838502697,1.18683325,3180.4,3179.6,1.26011721]
[1767838503095,1.18683325,3180.4,3179.5,3.1451486]
[1767838503596,1.18683325,3180.4,3179.4,0.19375466]
[1767838503801,1.18683325,3180.4,3179.2,2.12545842]
[1767838504094,4.3311907,3180.3,3179.3,4.41431975]
[1767838504294,1.18683325,3180.2,3179.3,4.41431975]
[1767838505895,1.18683325,3180.2,3179.0,1.27475983]
[1767838506101,1.18683325,3180.0,3179.1,3.14553107]
[1767838506469,1.18683325,3180.0,3178.9,3.14568356]
[1767838506671,1.18683325,3180.0,3178.6,2.10258959]
[1767838507193,1.18683325,3180.0,3179.0,3.14560372]
[1767838507597,1.18683325,3180.0,3178.7,1.27758959]
[1767838507803,1.18683325,3179.8,3178.9,3.14568511]
[1767838508295,1.18683325,3179.7,3178.6,3.14599646]
[1767838509303,1.18683325,3179.7,3178.5,3.14612676]
[1767838509502,1.18683325,3179.7,3178.6,3.1459968]
[1767838509708,1.18683325,3179.7,3178.6,6.8203206]
[1767838509709,1.18683325,3179.6,3178.6,6.8203206]
[1767838510111,1.18683325,3179.6,3178.6,3.67428147]
[1767838510302,1.18683325,3179.6,3178.6,3.1459968]
[1767838510620,1.18683325,3179.4,3178.5,4.43197476]
[1767838511134,1.18683325,3179.4,3178.4,3.97117625]
[1767838511277,1.18683325,3179.4,3177.5,3.14710072]
[1767838511278,1.18683325,3179.4,3178.0,1.28857866]
[1767838511476,1.18683325,3179.2,3178.1,0.03146534]
[1767838511672,1.18683325,3179.2,3178.1,3.17799285]
[1767838511975,1.18683325,3179.2,3178.0,2.11357866]
[1767838512175,1.18683325,3179.2,3178.0,5.26015491]
[1767838512430,1.18683325,3179.2,3178.1,3.14647299]
[1767838512704,1.18683325,3179.0,3178.1,3.14647299]
[1767838512905,1.18683325,3179.0,3178.0,5.26019377]
[1767838513073,1.18683325,3178.8,3177.3,1.29387789]
[1767838513270,1.18683325,3178.8,3177.4,1.29387789]
[1767838513476,1.18683325,3178.6,3177.6,3.14699114]
[1767838514003,1.18683325,3178.6,3177.4,1.29387789]
[1767838514297,1.18683325,3178.6,3177.3,3.17873832]
[1767838514478,6.29227622,3178.5,3177.3,0.03147326]
[1767838514684,1.18683325,3178.4,3177.3,0.03147326]
[1767838515002,1.18683325,3178.4,3177.2,3.14740642]
[1767838515003,1.18683325,3178.2,3177.2,3.14740642]
[1767838515306,1.18683325,3178.2,3177.3,3.14730723]
[1767838515700,1.18683325,3178.2,3177.2,3.1473968]
[1767838516072,1.18683325,3178.2,3177.3,7.59628218]
[1767838516279,1.18683325,3178.4,3177.5,1.30164595]
[1767838516594,1.18683325,3178.4,3177.6,3.1470292]
[1767838516982,1.18683325,3178.3,3177.5,4.44874695]
[1767838517183,1.18683325,3178.3,3177.5,3.147101]
[1767838517980,5.0,3178.1,3177.5,3.147101]
[1767838518513,1.18683325,3178.3,3177.5,3.147101]
[1767838519318,1.18683325,3178.3,3177.5,3.98291091]
[1767838519518,1.18683325,3178.3,3177.5,5.28960525]
[1767838519827,6.44,3180.8,3177.6,1.33816463]
[1767838519828,1.18683325,3178.6,3177.6,1.33816463]
[1767838521077,1.18683325,3178.6,3177.8,1.30669434]
[1767838522036,1.18683325,3178.5,3177.5,4.61580991]
[1767838522207,1.18683325,3178.5,3177.6,3.14702243]
[1767838522529,1.18683325,3178.4,3177.6,3.14702243]
[1767838522829,0.826,3178.5,3177.7,1.30669434]
[1767838523043,2.01283325,3178.5,3177.8,3.14683114]
[1767838523197,1.18683325,3179.0,3177.9,0.03146732]
[1767838523393,1.18683325,3178.8,3177.9,1.75519362]
[1767838524830,1.18683325,3178.8,3177.9,4.9018398]
[1767838525126,1.18683325,3178.7,3178.1,0.001]
[1767838527632,1.18683325,3178.6,3178.1,0.001]
[1767838527949,3.14595057,3178.7,3177.0,4.45424501]
[1767838527950,1.18683325,3178.3,3177.0,4.45424501]
[1767838528238,1.18683325,3178.3,3177.2,3.14734951]
[1767838528454,1.18683325,3178.3,3177.0,1.30669434]
[1767838528455,1.18683325,3178.3,3177.1,3.14746994]
[1767838528830,1.18683325,3178.3,3177.1,4.45416428]
[1767838529639,1.18683325,3178.1,3177.2,3.14741431]
[1767838529939,1.18683325,3178.0,3176.9,2.13269434]
[1767838530143,1.18683325,3178.0,3177.1,3.14751276]
[1767838530510,1.18683325,3178.0,3177.0,3.14760703]
[1767838530836,1.18683325,3178.0,3176.9,2.13269434]
[1767838531036,1.18683325,3178.0,3176.9,5.2803916]
[1767838531243,1.18683325,3178.0,3176.8,0.03147821]
[1767838531244,1.18683325,3177.8,3176.8,3.14772742]
[1767838531443,1.18683325,3177.6,3176.7,3.14792079]
[1767838531907,1.18683325,3177.6,3176.7,6.29584158]
[1767838532331,1.18683325,3177.6,3176.7,7.54042297]
[1767838534223,1.18683325,3177.6,3176.8,1.24458139]
[1767838534423,1.18683325,3177.6,3176.8,2.08122369]